{"text_format":"2","workbook":"xlsx","n_sheets":8,"sheets":["Apklausa","Verslo klasės lėktuvai","Knygos","Atomų branduolių sandara","Branduolinės jėgainės","Nobelio_premija","Optiniai teleskopai","Planetiškieji ūkai"],"not_rendered":{"charts":0,"images":8,"macros":0,"external_links":1,"defined_names":1,"comments":0,"pivot_tables":0},"unopened":[],"bounds":{"document_bytes":16777216,"sheet_cells":100000,"run_cost":"one","rows_first":2000,"rows_last":500,"rows_between":2000,"halvings":0,"cell_chars":16384,"cell_head_chars":4096},"cells_cut":0,"cells_raw":0,"read":"whole","date_system":"1900"}

{"sheet":"Apklausa","index":0,"n_rows":15,"n_cols":7,"rows_kept":15,"cut":false,"hidden":false,"merged":[[0,0,0,6]]}
["Apklausa"]
["Vardas ir pavardė","Lytis","Patinka matematika","Patinka fizika","Patinka ir matematika, ir fizika","Patinka tik matematika","Patinka tik fizika"]
["Jonas Tyrėjas","Vyr.","Taip","Ne",{"$f":"IF(AND(C3=\"Taip\",D3=\"Taip\"),\"Patinka ir mat., ir fiz.\",\"\")","v":""},{"$f":"IF(AND(C3=\"Taip\",NOT(D3=\"Taip\")),\"Patinka tik mat.\",\"\")","v":"Patinka tik mat."},{"$f":"IF(AND(NOT(C3=\"Taip\"),D3=\"Taip\"),\"Patinka tik fiz.\",\"\")","v":""}]
["Petras Mokslininkas","Vyr.","Taip","Taip",{"$f":"IF(AND(C4=\"Taip\",D4=\"Taip\"),\"Patinka ir mat., ir fiz.\",\"\")","v":"Patinka ir mat., ir fiz."},{"$f":"IF(AND(C4=\"Taip\",NOT(D4=\"Taip\")),\"Patinka tik mat.\",\"\")","v":""},{"$f":"IF(AND(NOT(C4=\"Taip\"),D4=\"Taip\"),\"Patinka tik fiz.\",\"\")","v":""}]
["Antanina Tyrėja","Mot.","Ne","Taip","","","Patinka tik fiz."]
["Martyna Mokslininkė","Mot.","Taip","Taip","Patinka ir mat., ir fiz.","",""]
["Ona Fizikė","Mot.","Taip","Ne","","Patinka tik mat.",""]
["Mindaugas Matematikas","Vyr.","Ne","Ne","","",""]
["Marija Chemikė","Mot.","Taip","Taip","Patinka ir mat., ir fiz.","",""]
["Juozas Matlankis","Vyr.","Ne","Ne","","",""]
["Agnė Liniuotė","Mot.","Taip","Ne","","Patinka tik mat.",""]
["Algirdas Trintukas","Vyr.","Taip","Ne","","Patinka tik mat.",""]
["Matas Pieštukas","Vyr.","Taip","Taip","Patinka ir mat., ir fiz.","",""]
["Rožė Knygaitė","Mot.","Ne","Taip","","","Patinka tik fiz."]
[{"$f":"COUNTIF(A3:A14,\"*\")","v":12},{"$f":"COUNTIF(B3:B14,\"vyr.\")","v":6},{"$f":"COUNTIF(C3:C14,\"Taip\")","v":8},{"$f":"COUNTIF(D3:D14,\"Taip\")","v":6},{"$f":"COUNTIF(E3:E14,\"Patinka ir mat., ir fiz.\")","v":4},{"$f":"COUNTIF(F3:F14,\"Patinka tik mat.\")","v":4},{"$f":"COUNTIF(G3:G14,\"Patinka tik fiz.\")","v":2}]

{"sheet":"Verslo klasės lėktuvai","index":1,"n_rows":20,"n_cols":5,"rows_kept":20,"cut":false,"hidden":false,"merged":[[0,0,0,4]]}
["VERSLO KLASĖS LĖKTUVAI"]
["Pavadinimas","Kategorija","Skrydžio nuotolis, km","Kreiserinis greitis, km/val.","Didžiausias keleivių skaičius"]
["Challenger 604","Didelis lėktuvas",7458,850,12]
["Challenger 605","Didelis lėktuvas",7491,850,12]
["Challenger 800","Didelis lėktuvas",5778,819,19]
["Challenger 851","Didelis lėktuvas",5689,819,19]
["Falcon 900B","Didelis lėktuvas",7408,852,14]
["Falcon 900DX","Didelis lėktuvas",7593,900,14]
["Challenger 300","Vidutinis lėktuvas",5741,850,9]
["Citation X","Vidutinis lėktuvas",6278,973,9]
["Falcon 50EX","Vidutinis lėktuvas",5695,850,10]
["Gulfstream G100","Vidutinis lėktuvas",5000,850,7]
["Gulfstream G150","Vidutinis lėktuvas",5000,850,8]
["Learjet 60","Vidutinis lėktuvas",4617,846,8]
["Citation Bravo","Mažas lėktuvas",3232,745,7]
["Citation CJ3","Mažas lėktuvas",3282,773,6]
["Citation Encore","Mažas lėktuvas",3295,795,8]
["Hawker 400XP","Mažas lėktuvas",2744,778,8]
["Learjet 40/40XR","Mažas lėktuvas",3378,846,7]
["Premier 1A","Mažas lėktuvas",2213,835,7]

{"sheet":"Knygos","index":2,"n_rows":36,"n_cols":9,"rows_kept":36,"cut":false,"hidden":false,"merged":[[0,0,0,4]]}
["Knygos"]
["Pavadinimas","Komentaras","Autorius","Leidykla","Leidimo metai"]
["Zuika padūkėlis","Vaikams","Vytautas Račickas ","Vyturys",1985]
["Einšteinas. Biografija","Biografija","Jürgen Neffe ","Alma littera",2010]
["Teatras","Romanas, klasika","William Somerset Maugham ","Alma littera",2006]
["Puikybė ir prietarai","Romanas, klasika","Jane Austen ","Alma littera",2008]
["Silva Rerum","Romanas, klasika","Kristina Sabaliauskaitė","Baltos lankos",2010]
["Zahiras","Romanas","Paulo Coelho","Vaga",2005]
["Mano virtualieji aš","IKT","Matthew Fraser, Soumitra Dutta","Eugrimas",2010]
["Verslas minties greičiu","Ekonomika ","Bill Gates","Eugrimas",2008]
["Dienoraštis be datų","Publicistika","Justinas Marcinkevičius","Vyturys",1999]
["Kaip žydėjimas vyšnios","Poezija","Salomėja Nėris","Vaga",1978]
["Prie užvertos langinės","Klasika","Žemaitė","Vaga",1971]
["Anykščių šilelis","Poema","Antanas Baranauskas","Vaga",1977]
["Užpaliai: mūsų svajonių kraštas","Krašto istorija","Vanda Kuliešienė, Stanislovas Balčiūnas","Sodra Press",1999]
{"$rows_empty":20}
[{"$nulls":8},"                                                                                                                           "]

{"sheet":"Atomų branduolių sandara","index":3,"n_rows":12,"n_cols":4,"rows_kept":12,"cut":false,"hidden":false,"merged":[[0,0,0,3]]}
["Atomų branduolių sandara"]
["Pavadinimas","Žymuo","Masės skaičius","Protonų skaičius"]
["Sidabras","Ag",108,47]
["Auksas","Au",197,79]
["Anglis","C",12,6]
["Chloras","Cl",35,17]
["Geležis","Fe",46,26]
["Vandenilis","H",1,1]
["Natris","Na",23,11]
["Deguonis","O",16,8]
["Švinas","Pb",207,82]
["Uranas","U",238,92]

{"sheet":"Branduolinės jėgainės","index":4,"n_rows":16,"n_cols":4,"rows_kept":16,"cut":false,"hidden":false,"merged":[[0,0,0,3]]}
["2000–2010 m. pasaulio šalių branduolinių reaktorių galingumai (MW)"]
["Šalis","2000 m.","2005 m.","2010 m."]
["Anglija",12868,12868,12868]
["Belgija",5737,5737,5737]
["Brazilija",1855,1855,3084]
["Bulgarija",3538,2722,1906]
["Indija",2355,3015,7525]
["Japonija",43462,43462,61710]
["JAV",95409,95409,95409]
["Kanada",10258,14347,14347]
["Lietuva",2500,1250,0]
["P. Korėja",12893,16893,23837]
["Prancūzija",63193,62960,64460]
["Suomija",2543,2658,4158]
["Turkija",0,0,900]
["Vokietija",21327,21327,20987]

{"sheet":"Nobelio_premija","index":5,"n_rows":10,"n_cols":7,"rows_kept":10,"cut":false,"hidden":false,"merged":[[0,0,0,6]]}
["Nobelio premijos laureatai"]
["Šalis","Fizika","Chemija","Fiziologija ir medicina","Literatūra","Taika","Ekonomika"]
["Didžioji Britanija",21,25,30,10,12,2]
["Italija",3,1,4,6,1,0]
["JAV",65,54,66,11,23,37]
["Prancūzija",12,6,8,14,9,1]
["Švedija",4,4,8,6,5,2]
["Šveicarija",4,6,7,2,10,0]
["TSRS / Rusija",9,1,2,4,2,1]
["Vokietija",12,24,15,9,4,1]

{"sheet":"Optiniai teleskopai","index":6,"n_rows":11,"n_cols":4,"rows_kept":11,"cut":false,"hidden":false,"merged":[[0,0,0,3]]}
["Didžiausi pasaulio optiniai teleskopai"]
["Observatorijos pavadinimas","Veidrodžio skersmuo, m","Vieta","Aukštis, m"]
["Europos pietų pusrutulio",16.399999999999999,"Čilė",2635]
["Japonijos nacionalinė",8.3000000000000007,"JAV",4140]
["La Palma",10.4,"Ispanija",2400]
["Mak Donaldo",9.1999999999999993,"JAV",2070]
["Mauna Kea",14.1,"JAV",4150]
["Maunt Grehemo",11.800000000000001,"JAV",3170]
["Maunt Palomaro",5,"JAV",1706]
["Pietų Afrikos",9.1999999999999993,"Pietų Afrika",1798]
["Rusijos specialioji astrofizikos",6,"Rusija",2070]

{"sheet":"Planetiškieji ūkai","index":7,"n_rows":10,"n_cols":6,"rows_kept":10,"cut":false,"hidden":false,"merged":[[0,0,0,5]]}
["Šviesiausi planetiškieji ūkai"]
["Pavadinimas","Žymėjimas","NASA nuotraukos","Žvaigždynas","Ryškis","Nuotolis tūkstančiais šviesmečių"]
["Eskimas ","NGC 2392",null,"Dvyniai",8.3000000000000007,4]
["Pelėda","NGC 3587",null,"Didieji Grįžulo ratai",12,4]
["Katės akis","NGC 6543",null,"Drakonas",8.8000000000000007,3]
["Žiedas","NGC 6720",null,"Lyra",9.3000000000000007,3]
["Akies rainelė","NGC 6751",null,"Erelis",12.199999999999999,8]
["Hantelis","NGC 6853",null,"Laputė",7.5999999999999996,1]
["Sraigė","NGC 7293",null,"Vandenis",6.5,1]
["Burbulas","NGC 7635",null,"Kasiopėja",8.5,2]